fUST/lending_fUST_20260116
["ID","MTS","AMOUNT","RATE_DAILY","PERIOD"]
[402187019,1768576250213,-1194.53,0.00027397,120]
[402187020,1768576250223,-500.0,0.00027397,120]
[402187021,1768576250234,-1194.53,0.00027397,120]
[402187022,1768576250244,-500.0,0.00027397,120]
[402187023,1768576250254,-165.19360221,0.00027397,120]
[402187024,1768576250264,-393.28060835,0.00027397,120]
[402187025,1768576251650,-542.0,0.00022092,10]
[402187026,1768576251660,-1128.16112786,0.00022441,10]
[402187176,1768577431702,-616.17109106,0.00012248,10]
[402187178,1768577431714,-4383.82890894,0.00012248,10]
[402187180,1768577431724,-500.0,0.00012372,10]
[402187182,1768577431734,-2833.0748277,0.00012403,2]
[402187184,1768577431744,-601.0,0.00012814,2]
[402187187,1768577431759,-307.92026169,0.00012815,2]
[402187189,1768577431769,-1200.0,0.00013271,2]
[402187191,1768577431778,-300.0,0.00013272,2]
[402187192,1768577431787,-300.0,0.00013272,2]
[402187195,1768577431796,-300.0,0.00013272,2]
[402187197,1768577431806,-300.0,0.00013272,2]
[402187199,1768577431815,-170.16316784,0.00013273,2]
[402187201,1768577431825,-501.09814596,0.00013273,2]
[402187203,1768577431834,-500.0,0.00013273,2]
[402187205,1768577431844,-465.81779273,0.00013273,2]
[402187208,1768577431858,-21860.058159,0.00013273,2]
[402187211,1768577431868,-13559.0,0.000136,2]
[402187214,1768577431878,-1000.0,0.00013699,2]
[402187216,1768577431887,-2258.255079,0.00013699,2]
[402187218,1768577431898,-500.0,0.00013699,2]
[402187220,1768577431907,-500.0,0.00013699,2]
[402187222,1768577431917,-500.0,0.00013699,2]
[402187224,1768577431926,-500.0,0.00013699,2]
[402187226,1768577431935,-500.0,0.00013699,2]
[402187228,1768577431945,-500.55197713,0.00013699,2]
[402187230,1768577431954,-172.35132505,0.00013699,2]
[402187232,1768577431963,-500.4095444,0.00013699,2]
[402187234,1768577431973,-500.0,0.00013699,2]
[402187236,1768577431982,-500.0,0.00013699,2]
[402187237,1768577431991,-162.28022015,0.00013699,2]
[402187240,1768577432001,-500.43951312,0.00013699,2]
[402187241,1768577432010,-500.0,0.00013699,2]
[402187244,1768577432020,-500.0,0.00013699,2]
[402187246,1768577432030,-500.0,0.00013699,2]
[402187247,1768577432039,-427.2997855,0.00013821,2]
[402187250,1768577432049,-158.0,0.000139,2]
[402187252,1768577432058,-500.42059267,0.00014247,2]
[402187254,1768577432068,-500.0,0.00014247,2]
[402187256,1768577432077,-500.63268598,0.00014247,2]
[402187257,1768577432087,-1001.01580397,0.00014247,2]
[402187259,1768577432097,-1001.86461395,0.00014247,2]
[402187260,1768577432106,-1000.70696292,0.00014247,2]
[402187261,1768577432116,-500.67374948,0.00014247,2]
[402187262,1768577432126,-1000.99330291,0.00014247,2]
[402187263,1768577432136,-1000.0,0.00014247,2]
[402187264,1768577432146,-250.0,0.00014247,2]
[402187265,1768577432155,-420.0,0.00014551,2]
[402187266,1768577432165,-420.0,0.00014551,2]
[402187267,1768577432174,-1200.0,0.00014598,2]
[402187268,1768577432184,-268.0,0.00014599,2]
[402187269,1768577432194,-158.0,0.000147,2]
[402187270,1768577432203,-158.0,0.000148,2]
[402187271,1768577432213,-363.34590879,0.00014815,2]
[402187272,1768577432222,-179.2673007,0.00015068,2]
[402187273,1768577432233,-158.0,0.000151,2]
[402187274,1768577432242,-158.0,0.000151,2]
[402187275,1768577432252,-300.7934208,0.0001512,2]
[402187276,1768577432261,-168.0,0.00015269,2]
[402187277,1768577432270,-168.0,0.00015285,2]
[402187278,1768577432279,-168.0,0.00015318,2]
[402187279,1768577432288,-168.0,0.00015377,2]
[402187280,1768577432298,-168.0,0.00015383,2]
[402187281,1768577432307,-620.04016358,0.000154,30]
[402187282,1768577432317,-168.0,0.00015404,2]
[402187283,1768577432326,-168.0,0.00015413,2]
[402187284,1768577432337,-168.0,0.00015542,2]
[402187285,1768577432346,-168.0,0.0001555,2]
[402187286,1768577432355,-168.0,0.00015582,2]
[402187287,1768577432366,-168.0,0.0001563,2]
[402187289,1768577432376,-168.0,0.00015742,2]
[402187291,1768577432385,-168.0,0.00015748,2]
[402187292,1768577432394,-168.0,0.00015891,2]
[402187294,1768577432404,-168.0,0.0001591,2]
[402187296,1768577432413,-168.0,0.00015919,2]
[402187298,1768577432422,-348.0,0.00016,2]
[402187300,1768577432431,-2407.218993,0.00016072,2]
[402187302,1768577432441,-168.0,0.00016088,2]
[402187304,1768577432450,-620.00200818,0.0001617,30]
[402187306,1768577432460,-168.0,0.00016286,2]
[402187308,1768577432470,-168.0,0.0001659,2]
[402187311,1768577432480,-168.0,0.0001666,2]
[402187312,1768577432489,-168.0,0.00016728,2]
[402187314,1768577432498,-168.0,0.00016739,2]
[402187316,1768577432508,-418.7715559,0.00016815,2]
[402187318,1768577432517,-2960.03365814,0.00016999,2]
[402187320,1768577432526,-500.0,0.00017,2]
[402187322,1768577432535,-28068.63518971,0.00017,2]
[402187325,1768577432548,-332.93679327,0.00017,2]
[402187356,1768577437744,-7456.48810388,0.000135,2]
[402187357,1768577437753,-500.0,0.000147,2]
[402187358,1768577437762,-7456.48810387,0.00015471,2]
[402187359,1768577437772,-583.12932824,0.00016998,2]
[402187360,1768577437781,-500.0,0.00016998,2]
[402187361,1768577437791,-500.0,0.00016998,2]
[402187362,1768577437800,-500.0,0.00016998,2]
[402187363,1768577437809,-500.0,0.00016998,2]
[402187364,1768577437819,-500.0,0.00016998,2]
[402187365,1768577437828,-500.0,0.00016998,2]
[402187366,1768577437839,-500.0,0.00016998,2]
[402187367,1768577437848,-500.0,0.00016998,2]
[402187368,1768577437862,-500.0,0.00016998,2]
[402187369,1768577437871,-500.0,0.00016998,2]
[402187370,1768577437881,-500.0,0.00016998,2]
[402187371,1768577437890,-500.0,0.00016998,2]
[402187372,1768577437900,-500.0,0.00016998,2]
[402187373,1768577437909,-500.0,0.00016998,2]
[402187374,1768577437919,-500.0,0.00016998,2]
[402187375,1768577437928,-500.0,0.00016998,2]
[402187376,1768577437938,-500.0,0.00016998,2]
[402187377,1768577437947,-500.0,0.00016998,2]
[402187378,1768577437956,-500.0,0.00016998,2]
[402187379,1768577437965,-500.0,0.00016998,2]
[402187380,1768577437975,-399.50559126,0.00016998,2]
[402187381,1768577437985,-500.0,0.00016998,2]
[402187382,1768577437994,-500.0,0.00016998,2]
[402187383,1768577438004,-500.0,0.00016998,2]
[402187384,1768577438014,-92.63049615,0.00016998,2]
[402187414,1768577439959,-407.36950385,0.00016998,2]
[402187416,1768577439970,-500.0,0.00016998,2]
[402187418,1768577439979,-500.0,0.00016998,2]
[402187420,1768577439988,-500.0,0.00016998,2]
[402187422,1768577439997,-500.0,0.00016998,2]
[402187423,1768577440007,-500.0,0.00016998,2]
[402187425,1768577440016,-500.0,0.00016998,2]
[402187427,1768577440026,-500.0,0.00016998,2]
[402187429,1768577440035,-500.0,0.00016998,2]
[402187431,1768577440045,-500.0,0.00016998,2]
[402187433,1768577440055,-500.0,0.00016998,2]
[402187434,1768577440065,-500.0,0.00016998,2]
[402187436,1768577440074,-339.10063143,0.00016998,2]
[402187438,1768577440084,-500.0,0.00016998,2]
[402187439,1768577440094,-500.0,0.00016998,2]
[402187441,1768577440103,-500.0,0.00016998,2]
[402187443,1768577440112,-500.0,0.00016998,2]
[402187445,1768577440121,-500.0,0.00016998,2]
[402187446,1768577440130,-500.0,0.00016998,2]
[402187448,1768577440139,-500.0,0.00016998,2]
[402187450,1768577440148,-500.0,0.00016998,2]
[402187452,1768577440157,-500.0,0.00016998,2]
[402187453,1768577440167,-500.0,0.00016998,2]
[402187455,1768577440176,-403.11511032,0.00016998,2]
[402187457,1768577440185,-500.0,0.00016998,2]
[402187459,1768577440195,-500.0,0.00016998,2]
[402187460,1768577440204,-500.0,0.00016998,2]
[402187462,1768577440213,-500.0,0.00016998,2]
[402187464,1768577440222,-500.0,0.00016998,2]
[402187466,1768577440232,-500.0,0.00016998,2]
[402187467,1768577440241,-500.0,0.00016998,2]
[402187469,1768577440251,-554.20324534,0.00016998,2]
[402187471,1768577440261,-500.0,0.00016998,2]
[402187473,1768577440270,-500.0,0.00016998,2]
[402187475,1768577440279,-500.0,0.00016998,2]
[402187476,1768577440288,-500.0,0.00016998,2]
[402187478,1768577440297,-440.70653472,0.00016998,2]
[402187480,1768577440307,-500.0,0.00016998,2]
[402187482,1768577440317,-500.0,0.00016998,2]
[402187483,1768577440326,-500.0,0.00016998,2]
[402187485,1768577440335,-500.0,0.00016998,2]
[402187487,1768577440346,-500.0,0.00016998,2]
[402187489,1768577440355,-500.0,0.00016998,2]
[402187491,1768577440364,-500.0,0.00016998,2]
[402187493,1768577440373,-500.0,0.00016998,2]
[402187494,1768577440383,-500.0,0.00016998,2]
[402187496,1768577440391,-500.0,0.00016998,2]
[402187498,1768577440401,-500.0,0.00016998,2]
[402187500,1768577440411,-500.0,0.00016998,2]
[402187502,1768577440421,-500.0,0.00016998,2]
[402187504,1768577440431,-500.0,0.00016998,2]
[402187505,1768577440440,-500.0,0.00016998,2]
[402187507,1768577440450,-500.0,0.00016998,2]
[402187509,1768577440461,-500.0,0.00016998,2]
[402187511,1768577440471,-500.0,0.00016998,2]
[402187513,1768577440480,-500.0,0.00016998,2]
[402187515,1768577440490,-500.0,0.00016998,2]
[402187517,1768577440500,-500.0,0.00016998,2]
[402187518,1768577440509,-500.0,0.00016998,2]
[402187520,1768577440519,-500.0,0.00016998,2]
[402187522,1768577440529,-500.0,0.00016998,2]
[402187524,1768577440538,-500.0,0.00016998,2]
[402187526,1768577440548,-500.0,0.00016998,2]
[402187528,1768577440557,-500.0,0.00016998,2]
[402187529,1768577440566,-500.0,0.00016998,2]
[402187531,1768577440576,-500.0,0.00016998,2]
[402187533,1768577440585,-500.0,0.00016998,2]
[402187535,1768577440595,-500.0,0.00016998,2]
[402187537,1768577440604,-500.0,0.00016998,2]
[402187539,1768577440613,-500.0,0.00016998,2]
[402187540,1768577440622,-500.0,0.00016998,2]
[402187542,1768577440631,-500.0,0.00016998,2]
[402187544,1768577440641,-500.0,0.00016998,2]
[402187546,1768577440650,-500.0,0.00016998,2]
[402187548,1768577440659,-500.0,0.00016998,2]
[402187549,1768577440668,-500.0,0.00016998,2]
[402187551,1768577440677,-500.0,0.00016998,2]
[402187553,1768577440686,-83126.23969148,0.00017,2]
[402187555,1768577440695,-140511.87845182,0.0001701,3]
[402187557,1768577440705,-250.0,0.00017295,2]
[402187558,1768577440714,-164.148966,0.00017346,2]
[402187560,1768577440723,-250.0,0.00017346,2]
[402187562,1768577440733,-250.0,0.00017346,2]
[402187564,1768577440742,-250.0,0.00017346,2]
[402187566,1768577440751,-250.0,0.00017346,2]
[402187567,1768577440760,-250.0,0.00017346,2]
[402187569,1768577440769,-250.0,0.00017346,2]
[402187571,1768577440778,-223.13477496,0.00017346,2]
[402187573,1768577440787,-250.0,0.00017346,2]
[402187575,1768577440796,-222.18737856,0.00017346,2]
[402187577,1768577440805,-162.380719,0.00017346,2]
[402187578,1768577440814,-168.3888056,0.00017346,2]
[402187580,1768577440823,-174.61919141,0.00017346,2]
[402187582,1768577440832,-181.08010149,0.00017346,2]
[402187584,1768577440843,-187.78006525,0.00017346,2]
[402187586,1768577440852,-2150.738,0.00017346,2]
[402187588,1768577440865,-194.72792766,0.00017346,2]
[402187590,1768577440874,-445.202766,0.00017346,2]
[402187591,1768577440882,-201.93286099,0.00017346,2]
[402187593,1768577440892,-209.40437684,0.00017346,2]
[402187595,1768577440902,-217.15233878,0.00017346,2]
[402187597,1768577440911,-225.18697532,0.00017346,2]
[402187599,1768577440921,-233.51889341,0.00017346,2]
[402187601,1768577440933,-242.15909246,0.00017346,2]
[402187603,1768577440944,-251.11897888,0.00017346,2]
[402187604,1768577440953,-260.4103811,0.00017346,2]
[402187606,1768577440962,-270.0455652,0.00017346,2]
[402187608,1768577440971,-280.03725112,0.00017346,2]
[402187610,1768577440980,-290.39862941,0.00017346,2]
[402187612,1768577440989,-301.1433787,0.00017346,2]
[402187614,1768577440998,-180.15313016,0.00017772,2]
[402187615,1768577441007,-2230.315306,0.00017894,2]
[402187617,1768577441016,-461.67526834,0.00017894,2]
[402187619,1768577441025,-500.0,0.000179,3]
[402187621,1768577441034,-30476.27102619,0.0001799,2]
[402187623,1768577441043,-500.0,0.00018,2]
[402187625,1768577441052,-2312.83697232,0.00018442,2]
[402187627,1768577441062,-478.75725327,0.00018442,2]
[402187628,1768577441071,-474.197203,0.00018815,2]
[402187630,1768577441080,-303.10001603,0.000189,2]
[402187632,1768577441089,-2398.4119403,0.0001899,2]
[402187634,1768577441099,-496.47127164,0.0001899,2]
[402187636,1768577441108,-303.10001603,0.00019089,2]
[402187638,1768577441117,-167.99,0.000192,2]
[402187639,1768577441126,-303.10001603,0.00019278,2]
[402187641,1768577441135,-151.0,0.00019342,2]
[402187643,1768577441145,-2663.58,0.000194,3]
[402187645,1768577441154,-1041.66666667,0.00019422,2]
[402187647,1768577441164,-303.10001603,0.00019467,2]
[402187649,1768577441173,-2487.15318209,0.00019538,2]
[402187651,1768577441182,-570.89038772,0.00019538,2]
[402187653,1768577441191,-547.6119816,0.00019592,2]
[402187655,1768577441200,-547.61198157,0.00019592,2]
[402187656,1768577441209,-547.61198157,0.00019593,2]
[402187658,1768577441218,-547.61198157,0.00019593,2]
[402187660,1768577441227,-547.61198157,0.00019593,2]
[402187662,1768577441236,-201.31,0.000196,2]
[402187664,1768577441245,-303.10001603,0.00019656,2]
[402187666,1768577441255,-28416.1,0.0001969,2]
[402187668,1768577441265,-215.51245598,0.00019692,2]
[402187670,1768577441273,-500.0,0.00019692,2]
[402187672,1768577441282,-527.5819344,0.00019692,2]
[402187673,1768577441291,-507.3243,0.00019692,2]
[402187675,1768577441301,-344.0357,0.00019692,3]
[402187677,1768577441309,-507.32,0.00019692,2]
[402187679,1768577441319,-1000000.0,0.00019693,2]
[402187681,1768577441328,-21305.20187938,0.00019693,30]
[402187683,1768577441337,-191.7,0.000197,2]
[402187685,1768577441348,-2748.9,0.000197,2]
[402187687,1768577441357,-21005.08,0.000197,2]
[402187688,1768577441366,-728.0,0.0001976,2]
[402187690,1768577441376,-2147.0,0.00019793,2]
[402187692,1768577441386,-629.0,0.00019793,2]
[402187694,1768577441395,-1367.0,0.00019793,2]
[402187696,1768577441404,-417.0,0.00019793,2]
[402187698,1768577441413,-763.628,0.00019793,2]
[402187700,1768577441423,-198.478,0.00019793,2]
[402187702,1768577441432,-454.65002405,0.00019845,4]
[402187703,1768577441441,-341.4976631,0.0001989,3]
[402187705,1768577441450,-2000.0,0.0002,7]
[402187707,1768577441459,-1015.0,0.0002,2]
[402187709,1768577441469,-211.24420411,0.0002,2]
[402187711,1768577441478,-250.0,0.0002,10]
[402187713,1768577441487,-1100.20017902,0.0002,2]
[402187715,1768577441497,-254.04884001,0.0002,21]
[402187717,1768577441506,-64001.23596846,0.0002,2]
[402187718,1768577441515,-2009.86651923,0.0002,2]
[402187720,1768577441525,-481.754431,0.0002,7]
[402187722,1768577441535,-1000.0,0.0002,2]
[402187724,1768577441544,-303.10001583,0.00020034,4]
[402187726,1768577441554,-2579.17784983,0.00020086,2]
[402187728,1768577441563,-250.0,0.000201,10]
[402187730,1768577441573,-1279.939658,0.000201,7]
[402187731,1768577441582,-250.0,0.000202,10]
[402187733,1768577441592,-151.0,0.00020237,2]
[402187735,1768577441601,-250.0,0.000203,10]
[402187737,1768577441610,-250.0,0.000204,10]
[402187739,1768577441619,-250.0,0.000205,10]
[402187741,1768577441629,-2000.0,0.000205,7]
[402187743,1768577441638,-2258.255079,0.00020548,2]
[402187745,1768577441648,-250.0,0.000206,10]
[402187746,1768577441657,-2674.60743027,0.00020634,2]
[402187748,1768577441667,-250.0,0.000207,10]
[402187750,1768577441677,-250.0,0.000208,10]
[402187752,1768577441687,-529.6228501,0.00020815,2]
[402187754,1768577441696,-201.31,0.000209,2]
[402187756,1768577441705,-250.0,0.000209,10]
[402187758,1768577441715,-192.0,0.00020986,3]
[402187759,1768577441724,-2000.0,0.00021,7]
[402187761,1768577441733,-191.7,0.00021,2]
[402187763,1768577441742,-2748.9,0.00021,2]
[402187778,1768577442009,-250.0,0.00021,10]
[402187779,1768577442021,-21005.08,0.00021,2]
[402187780,1768577442031,-481.57939059,0.00021,10]
[402187781,1768577442040,-250.0,0.000211,10]
[402187782,1768577442050,-151.0,0.00021132,2]
[402187783,1768577442059,-2773.56790519,0.00021182,2]
[402187784,1768577442068,-2000.0,0.000215,7]
[402187785,1768577442077,-78875.7224843,0.000215,2]
[402187786,1768577442086,-2663.56,0.000217,3]
[402187787,1768577442096,-2876.18991768,0.0002173,2]
[402187788,1768577442105,-2000.0,0.00022,7]
[402187789,1768577442114,-459.6237502,0.00022,3]
[402187790,1768577442123,-158.0,0.00022,10]
[402187791,1768577442133,-158.0,0.00022,7]
[402187792,1768577442142,-84001.43263378,0.00022,2]
[402187793,1768577442151,-583.66664759,0.00022,20]
[402187794,1768577442160,-3199.849146,0.00022009,30]
[402187795,1768577442169,-151.0,0.00022027,2]
[402187796,1768577442178,-194.0,0.00022082,6]
[402187797,1768577442187,-728.0,0.00022135,2]
[402187798,1768577442196,-243.28390715,0.0002222,2]
[402187799,1768577442205,-2982.60894464,0.00022278,2]
[402187800,1768577442214,-2000.0,0.00022387,7]
[402187801,1768577442223,-2000.0,0.00022396,7]
[402187802,1768577442232,-2000.0,0.00022405,7]
[402187804,1768577442241,-2000.0,0.00022413,7]
[402187805,1768577442250,-2000.0,0.00022422,7]
[402187806,1768577442258,-2000.0,0.00022431,7]
[402187807,1768577442267,-2000.0,0.0002244,7]
[402187808,1768577442276,-2000.0,0.00022449,7]
[402187809,1768577442285,-2000.0,0.00022457,7]
[402187811,1768577442294,-300.0,0.00022466,2]
[402187812,1768577442303,-250.0,0.00022466,2]
[402187813,1768577442311,-200.0,0.00022466,2]
[402187815,1768577442320,-2000.0,0.00022466,7]
[402187817,1768577442329,-2000.0,0.00022475,7]
[402187819,1768577442338,-2000.0,0.00022484,7]
[402187822,1768577442353,-2000.0,0.00022493,7]
[402187824,1768577442362,-2000.0,0.000225,7]
[402187826,1768577442371,-2000.0,0.00022501,7]
[402187828,1768577442381,-2000.0,0.0002251,7]
[402187830,1768577442390,-2000.0,0.00022519,7]
[402187832,1768577442399,-2000.0,0.00022528,7]
[402187834,1768577442409,-208.188022,0.00022528,30]
[402187836,1768577442418,-2000.0,0.00022537,7]
[402187838,1768577442427,-2000.0,0.00022545,7]
[402187840,1768577442436,-2000.0,0.00022554,7]
[402187842,1768577442446,-2000.0,0.00022563,7]
[402187844,1768577442455,-2000.0,0.00022572,7]
[402187846,1768577442465,-7999.622867,0.00022572,30]
[402187848,1768577442474,-4028.46804828,0.00022572,7]
[402187850,1768577442484,-2000.0,0.00022581,7]
[402187852,1768577442493,-2000.0,0.00022589,7]
[402187854,1768577442503,-2000.0,0.00022598,7]
[402187856,1768577442512,-499.651249,0.00022598,30]
[402187858,1768577442521,-2000.0,0.00022607,7]
[402187860,1768577442530,-2000.0,0.00022616,7]
[402187862,1768577442540,-2000.0,0.00022625,7]
[402187864,1768577442549,-2000.0,0.00022633,7]
[402187866,1768577442558,-2000.0,0.00022642,7]
[402187868,1768577442568,-671.42800805,0.00022739,28]
[402187870,1768577442577,-582.916,0.00022793,2]
[402187872,1768577442587,-1367.0,0.00022793,2]
[402187874,1768577442597,-417.0,0.00022793,2]
[402187876,1768577442607,-715.0,0.00022793,2]
[402187878,1768577442617,-178.0,0.00022793,2]
[402187880,1768577442627,-2000.0,0.00022793,7]
[402187882,1768577442636,-2000.0,0.00022793,7]
[402187884,1768577442645,-585.04849721,0.00022815,2]
[402187886,1768577442655,-3092.96547559,0.00022826,2]
[402187888,1768577442665,-671.42800805,0.00022907,30]
[402187890,1768577442675,-151.0,0.00022922,2]
[402187892,1768577442684,-2000.0,0.00023,7]
[402187894,1768577442694,-21005.08,0.00023,2]
[402187896,1768577442703,-1041.66666667,0.00023,3]
[402187898,1768577442713,-200.0,0.00023013,30]
[402187900,1768577442722,-200.0,0.00023013,30]
[402187902,1768577442731,-200.0,0.00023013,30]
[402187904,1768577442741,-450.0,0.00023014,2]
[402187906,1768577442751,-350.0,0.00023014,2]
[402187909,1768577442761,-261.16480415,0.00023014,2]
[402187911,1768577442771,-671.42800805,0.00023075,30]
[402187912,1768577442780,-201.31,0.000231,7]
[402187915,1768577442790,-533.308191,0.00023115,30]
[402187917,1768577442800,-1544.0,0.00023168,10]
[402187919,1768577442809,-520.0,0.00023168,10]
[402187921,1768577442819,-916.0,0.00023168,10]
[402187923,1768577442828,-195.0,0.00023178,9]
[402187925,1768577442838,-2748.9,0.000232,14]
[402187927,1768577442855,-671.42800805,0.00023242,30]
[402187929,1768577442871,-191.7,0.000233,7]
[402187931,1768577442881,-3207.40519818,0.00023374,2]
[402187933,1768577442891,-671.42800805,0.0002341,30]
[402187935,1768577442902,-2000.0,0.000235,7]
[402187937,1768577442912,-600.0,0.00023562,2]
[402187939,1768577442922,-473.17242877,0.00023562,2]
[402187941,1768577442933,-671.42800805,0.00023578,30]
[402187943,1768577442942,-671.42800805,0.00023745,30]
[402187945,1768577442951,-228.20144067,0.00023781,30]
[402187947,1768577442962,-151.0,0.00023817,2]
[402187949,1768577442972,-671.42800805,0.00023913,30]
[402187951,1768577442982,-3326.07919052,0.00023922,2]
[402187953,1768577442991,-2000.0,0.00024,7]
[402187955,1768577443001,-1041.66666667,0.00024,7]
[402187957,1768577443010,-261.9752853,0.00024,2]
[402187959,1768577443020,-671.42800805,0.00024081,30]
[402187961,1768577443029,-163.00000001,0.000241,10]
[402187963,1768577443040,-750.0,0.0002411,2]
[402187965,1768577443049,-119270.24913286,0.00024142,2]
[402187968,1768577443066,-286.23146246,0.00024142,2]
[402187971,1768577443078,-1197.57370402,0.00024142,2]
[402187973,1768577443092,-473.29159374,0.00024142,2]
[402188035,1768577443768,-292.0,0.00024142,2]
[402188114,1768577444841,-500.0,0.00016998,2]
[402188115,1768577444851,-323.0,0.00016998,2]
[402188118,1768577444875,-177.0,0.00016998,2]
[402188120,1768577444885,-184.0,0.00016998,2]
[402188122,1768577444896,-316.0,0.00016998,2]
[402188124,1768577444907,-500.0,0.00016998,2]
[402188126,1768577444916,-500.0,0.00016998,2]
[402188127,1768577444926,-500.0,0.00016998,2]
[402188129,1768577444936,-500.0,0.00016998,2]
[402188131,1768577444945,-500.0,0.00016998,2]
[402188133,1768577444955,-500.0,0.00016998,2]
[402188135,1768577444964,-270.5954007,0.00016998,2]
[402188137,1768577444975,-229.4045993,0.00016998,2]
[402188138,1768577444986,-500.0,0.00016998,2]
[402188139,1768577444998,-267.2869007,0.00017173,10]
[402188142,1768577446025,-3293.99279022,0.00017173,10]
[402188143,1768577446035,-7456.48810387,0.00017442,2]
[402188144,1768577446045,-2000.0,0.00022784,7]
[402188145,1768577446055,-77618.18763578,0.00024142,2]
[402188146,1768577446064,-498.0,0.00024142,10]
[402188147,1768577446074,-1480.0,0.00024142,10]
[402188148,1768577446083,-687.0,0.00024142,10]
[402188149,1768577446093,-671.42800805,0.00024248,30]
[402188150,1768577446103,-197.0,0.00024274,12]
[402188151,1768577446112,-160.43,0.00024311,2]
[402188152,1768577446122,-21005.08,0.000244,2]
[402188153,1768577446131,-671.42800805,0.00024416,30]
[402188154,1768577446140,-3449.14412057,0.0002447,2]
[402188155,1768577446150,-1126.0,0.000245,5]
[402188156,1768577446159,-2000.0,0.000245,7]
[402188157,1768577446168,-671.42800805,0.00024584,30]
[402188158,1768577446178,-1065.0,0.00024594,7]
[402188159,1768577446187,-201.31,0.000246,7]
[402188160,1768577446197,-514.29577563,0.0002465,2]
[402188161,1768577446207,-51141.78969005,0.0002465,2]
[402188168,1768577602631,155.0,1e-08,2]
[402188169,1768577781076,184.4947033,0.000154,120]
[402188346,1768578632047,-163.85,0.00013742,2]
[402188348,1768578632057,-280.838972,0.00013951,2]
[402188350,1768578632067,-619.0,0.00013951,2]
[402188352,1768578632078,-187.25,0.00014551,2]
[402188354,1768578632088,-74.5099638,0.000152,2]
[402188502,1768578638290,-195.59825966,0.000152,2]
[402188504,1768578638300,-210.66,0.00015359,2]
[402188505,1768578638310,-1565.25269778,0.00015589,2]
[402188522,1768578639249,-4254.33500332,0.00015589,2]
[402188523,1768578639259,-999.0,0.00015948,2]
[402188524,1768578639270,-331.38998696,0.00015951,2]
[402188525,1768578639280,-1051.33916696,0.00016132,2]
[402188526,1768578639316,-1099.39883304,0.00016132,2]
[402188527,1768578639326,-234.07,0.00016168,2]
[402188528,1768578639335,-500.0,0.00016623,2]
[402188529,1768578639345,-2230.315306,0.0001668,2]
[402188530,1768578639354,-500.0,0.0001676,2]
[402188531,1768578639364,-719.66343862,0.0001676,2]
[402188532,1768578639374,-162.380719,0.00016888,2]
[402188533,1768578639385,-168.3888056,0.00016888,2]
[402188534,1768578639394,-174.61919141,0.00016888,2]
[402188535,1768578639404,-181.08010149,0.00016888,2]
[402188536,1768578639414,-187.78006525,0.00016888,2]
[402188537,1768578639423,-194.72792766,0.00016888,2]
[402188538,1768578639433,-201.93286099,0.00016888,2]
[402188539,1768578639442,-209.40437684,0.00016888,2]
[402188540,1768578639452,-217.15233878,0.00016888,2]
[402188541,1768578639462,-225.18697532,0.00016888,2]
[402188542,1768578639472,-233.51889341,0.00016888,2]
[402188543,1768578639481,-242.15909246,0.00016888,2]
[402188544,1768578639490,-251.11897888,0.00016888,2]
[402188545,1768578639499,-257.45624052,0.00016888,2]
[402188546,1768578639509,-500.0,0.00016897,2]
[402188547,1768578639519,-200.0,0.00016897,2]